[Event "Early-Titled-Tuesday-Blitz-April-16-2024"]
[Site "Chess.com"]
[Date "2024.04.16"]
[Round "4"]
[White "MKlose11"]
[Black "NikFil2013"]
[Result "1-0"]
[WhiteElo "2623"]
[BlackElo "2416"]
[TimeControl "180+1"]
[EndTime "8:39:17 PDT"]
[Termination "MKlose11 won by resignation"]

1. e4 {[%clk 0:03:00.9]} 1... c5 {[%clk 0:02:59.8]} 2. Nc3 {[%clk 0:03:00]} 2...
d6 {[%clk 0:02:59.5]} 3. g3 {[%clk 0:03:00.9]} 3... e6 {[%clk 0:03:00.2]} 4. d3
{[%clk 0:03:01.4]} 4... Nc6 {[%clk 0:03:00.9]} 5. Bg2 {[%clk 0:03:02]} 5... Nf6
{[%clk 0:02:59.5]} 6. h3 {[%clk 0:03:01.4]} 6... Be7 {[%clk 0:02:58.7]} 7. Be3
{[%clk 0:03:01.9]} 7... d5 {[%clk 0:02:54.7]} 8. exd5 {[%clk 0:03:00]} 8... exd5
{[%clk 0:02:55.6]} 9. Bg5 {[%clk 0:02:59]} 9... Be6 {[%clk 0:02:50.9]} 10. Nge2
{[%clk 0:02:59.1]} 10... O-O {[%clk 0:02:50.8]} 11. O-O {[%clk 0:02:59.1]} 11...
d4 {[%clk 0:02:48.6]} 12. Bxf6 {[%clk 0:02:53.3]} 12... Bxf6 {[%clk 0:02:45.5]}
13. Ne4 {[%clk 0:02:53.1]} 13... Be7 {[%clk 0:02:40.4]} 14. Nf4 {[%clk
0:02:35.8]} 14... Bf5 {[%clk 0:02:29.5]} 15. Nd5 {[%clk 0:02:11.7]} 15... Be6
{[%clk 0:02:06.3]} 16. Nxe7+ {[%clk 0:01:59.8]} 16... Qxe7 {[%clk 0:02:07.2]}
17. Re1 {[%clk 0:01:59.4]} 17... Rfe8 {[%clk 0:01:57.1]} 18. Qh5 {[%clk
0:01:57.7]} 18... Nb4 {[%clk 0:01:35.7]} 19. Re2 {[%clk 0:01:34.8]} 19... Rac8
{[%clk 0:01:29]} 20. a3 {[%clk 0:01:33.7]} 20... Nd5 {[%clk 0:01:21.1]} 21. Rae1
{[%clk 0:01:25.3]} 21... Nf6 {[%clk 0:01:12]} 22. Nxf6+ {[%clk 0:01:21.1]} 22...
Qxf6 {[%clk 0:01:10.4]} 23. Bxb7 {[%clk 0:01:15.4]} 23... Rb8 {[%clk 0:01:07.8]}
24. Bd5 {[%clk 0:01:16]} 24... g6 {[%clk 0:00:58.4]} 25. Qh6 {[%clk 0:01:02.4]}
25... Rxb2 {[%clk 0:00:53.6]} 26. Bxe6 {[%clk 0:01:02.2]} 26... Rxe6 {[%clk
0:00:48.1]} 27. Rxe6 {[%clk 0:01:01.8]} 27... fxe6 {[%clk 0:00:49]} 28. Re4
{[%clk 0:01:02]} 28... e5 {[%clk 0:00:43.3]} 29. Qc1 {[%clk 0:00:47.6]} 29...
Rb8 {[%clk 0:00:39.3]} 30. Qe1 {[%clk 0:00:46.3]} 30... Re8 {[%clk 0:00:26.1]}
31. f4 {[%clk 0:00:43.8]} 31... Qf5 {[%clk 0:00:18.3]} 32. Kh2 {[%clk 0:00:32]}
32... Kf7 {[%clk 0:00:15.3]} 33. g4 {[%clk 0:00:28.3]} 33... Qe6 {[%clk
0:00:14.7]} 34. Rxe5 {[%clk 0:00:27.4]} 34... Kg7 {[%clk 0:00:15.6]} 35. Rxe6
{[%clk 0:00:27.1]} 1-0

[Event "Early-Titled-Tuesday-Blitz-April-16-2024"]
[Site "Chess.com"]
[Date "2024.04.16"]
[Round "4"]
[White "JiiHart"]
[Black "cansun"]
[Result "1-0"]
[WhiteElo "2168"]
[BlackElo "2390"]
[TimeControl "180+1"]
[EndTime "8:39:17 PDT"]
[Termination "JiiHart won by resignation"]

1. e4 {[%clk 0:03:00.9]} 1... c5 {[%clk 0:02:56.5]} 2. c3 {[%clk 0:03:00.7]}
2... Nf6 {[%clk 0:02:51.8]} 3. e5 {[%clk 0:03:00.9]} 3... Nd5 {[%clk 0:02:51.4]}
4. d4 {[%clk 0:03:01.2]} 4... cxd4 {[%clk 0:02:51.6]} 5. Nf3 {[%clk 0:03:01.5]}
5... e6 {[%clk 0:02:49.2]} 6. cxd4 {[%clk 0:03:01.7]} 6... d6 {[%clk 0:02:49.4]}
7. Nc3 {[%clk 0:03:01.8]} 7... Nc6 {[%clk 0:02:42.1]} 8. Bd3 {[%clk 0:02:55.8]}
8... Be7 {[%clk 0:02:31.7]} 9. O-O {[%clk 0:02:34.4]} 9... O-O {[%clk
0:02:21.6]} 10. Bd2 {[%clk 0:02:22.6]} 10... dxe5 {[%clk 0:01:51.1]} 11. dxe5
{[%clk 0:02:20.7]} 11... Ndb4 {[%clk 0:01:27]} 12. Bb1 {[%clk 0:02:12]} 12...
Qc7 {[%clk 0:01:26.2]} 13. Qe2 {[%clk 0:02:07.3]} 13... Rd8 {[%clk 0:01:20.7]}
14. Qe4 {[%clk 0:01:54.2]} 14... g6 {[%clk 0:01:19.8]} 15. a3 {[%clk 0:01:53.9]}
15... Nd5 {[%clk 0:01:17.8]} 16. Ba2 {[%clk 0:01:44.4]} 16... Nxc3 {[%clk
0:00:56.1]} 17. Bxc3 {[%clk 0:01:43.8]} 17... b6 {[%clk 0:00:56.2]} 18. Rad1
{[%clk 0:01:30.9]} 18... Ba6 {[%clk 0:00:52.6]} 19. Rfe1 {[%clk 0:01:28.9]}
19... Rac8 {[%clk 0:00:50.7]} 20. h4 {[%clk 0:01:27.3]} 20... Bb7 {[%clk
0:00:41.6]} 21. Qf4 {[%clk 0:01:26.1]} 21... Na5 {[%clk 0:00:28]} 22. Bxa5
{[%clk 0:01:04.1]} 22... bxa5 {[%clk 0:00:27.6]} 23. Rc1 {[%clk 0:01:04.6]}
23... Qb6 {[%clk 0:00:24.3]} 24. b4 {[%clk 0:00:32.3]} 24... axb4 {[%clk
0:00:22.1]} 25. axb4 {[%clk 0:00:32.8]} 25... Bxb4 {[%clk 0:00:20.7]} 26. Ng5
{[%clk 0:00:28.8]} 26... Rf8 {[%clk 0:00:14.6]} 27. Rxc8 {[%clk 0:00:24.2]}
27... Bxc8 {[%clk 0:00:14.9]} 28. Rb1 {[%clk 0:00:24]} 28... a5 {[%clk
0:00:13.5]} 29. Ne4 {[%clk 0:00:23.9]} 29... Qd4 {[%clk 0:00:11.4]} 30. Nf6+
{[%clk 0:00:23.2]} 30... Kg7 {[%clk 0:00:11.2]} 31. Qxd4 {[%clk 0:00:23.5]} 1-0

[Event "Early-Titled-Tuesday-Blitz-April-16-2024"]
[Site "Chess.com"]
[Date "2024.04.16"]
[Round "4"]
[White "Maftuna2303"]
[Black "mariangie523"]
[Result "1-0"]
[WhiteElo "2375"]
[BlackElo "2148"]
[TimeControl "180+1"]
[EndTime "8:39:17 PDT"]
[Termination "Maftuna2303 won on time"]

1. e4 {[%clk 0:03:00.9]} 1... c5 {[%clk 0:02:58.6]} 2. Nf3 {[%clk 0:03:00.6]}
2... d6 {[%clk 0:02:58.6]} 3. d4 {[%clk 0:02:56.8]} 3... cxd4 {[%clk 0:02:58.7]}
4. Nxd4 {[%clk 0:02:57]} 4... Nf6 {[%clk 0:02:58.9]} 5. Nc3 {[%clk 0:02:57]}
5... g6 {[%clk 0:02:59.2]} 6. Be2 {[%clk 0:02:53.4]} 6... Bg7 {[%clk 0:02:59.3]}
7. O-O {[%clk 0:02:53.6]} 7... O-O {[%clk 0:02:59.1]} 8. Be3 {[%clk 0:02:53.5]}
8... Nc6 {[%clk 0:02:59.4]} 9. Nb3 {[%clk 0:02:51.5]} 9... Be6 {[%clk
0:02:55.7]} 10. f3 {[%clk 0:02:51.2]} 10... Rc8 {[%clk 0:02:53.8]} 11. Nd5
{[%clk 0:02:46.8]} 11... b6 {[%clk 0:02:29.8]} 12. c3 {[%clk 0:02:44.8]} 12...
Ne5 {[%clk 0:02:29.6]} 13. Bf2 {[%clk 0:02:34.5]} 13... Nc4 {[%clk 0:02:22.1]}
14. Rb1 {[%clk 0:02:31.3]} 14... Nd7 {[%clk 0:02:17.4]} 15. Nd4 {[%clk
0:02:27.6]} 15... Nce5 {[%clk 0:01:35.4]} 16. f4 {[%clk 0:02:22.1]} 16... Bxd5
{[%clk 0:01:29.3]} 17. exd5 {[%clk 0:02:20.5]} 17... Nc4 {[%clk 0:01:21.6]} 18.
Nc6 {[%clk 0:02:19.8]} 18... Nxb2 {[%clk 0:00:43.4]} 19. Rxb2 {[%clk 0:02:12.7]}
19... Qe8 {[%clk 0:00:43.5]} 20. Bd4 {[%clk 0:02:12.2]} 20... Nf6 {[%clk
0:00:43.3]} 21. Bf3 {[%clk 0:02:11.2]} 21... Qd7 {[%clk 0:00:41.2]} 22. Re1
{[%clk 0:02:10.5]} 22... Rfe8 {[%clk 0:00:40.8]} 23. Rbe2 {[%clk 0:02:10.2]}
23... e5 {[%clk 0:00:21.4]} 24. fxe5 {[%clk 0:02:07.6]} 24... dxe5 {[%clk
0:00:21.4]} 25. Bxe5 {[%clk 0:02:02.5]} 25... Qf5 {[%clk 0:00:08.9]} 26. Nd4
{[%clk 0:01:59.4]} 26... Qd7 {[%clk 0:00:08.1]} 27. c4 {[%clk 0:01:53.1]} 27...
a6 {[%clk 0:00:06.1]} 28. Bxf6 {[%clk 0:01:52.1]} 28... Bxf6 {[%clk 0:00:06.1]}
29. Rxe8+ {[%clk 0:01:51.6]} 29... Rxe8 {[%clk 0:00:07]} 30. Rxe8+ {[%clk
0:01:47.1]} 30... Qxe8 {[%clk 0:00:07.9]} 31. Qe2 {[%clk 0:01:42.7]} 31... Bxd4+
{[%clk 0:00:07]} 32. Kf1 {[%clk 0:01:43]} 32... Qxe2+ {[%clk 0:00:07]} 33. Kxe2
{[%clk 0:01:43.2]} 33... Bc5 {[%clk 0:00:07.9]} 34. Bg4 {[%clk 0:01:33.3]} 34...
Kf8 {[%clk 0:00:07.2]} 35. Bc8 {[%clk 0:01:32.2]} 35... a5 {[%clk 0:00:06.7]}
36. Kd3 {[%clk 0:01:29.7]} 36... Ke7 {[%clk 0:00:06.1]} 37. Kc2 {[%clk
0:01:28.9]} 37... Kd6 {[%clk 0:00:06]} 38. Kb3 {[%clk 0:01:28.9]} 38... Ke5
{[%clk 0:00:05.6]} 39. Ka4 {[%clk 0:01:27.2]} 39... Kd4 {[%clk 0:00:05.6]} 40.
Kb5 {[%clk 0:01:27.2]} 40... h6 {[%clk 0:00:04.6]} 41. Ba6 {[%clk 0:01:25.1]}
41... Ke5 {[%clk 0:00:04.5]} 42. Kc6 {[%clk 0:01:25.2]} 42... f5 {[%clk
0:00:03.4]} 43. Bc8 {[%clk 0:01:24.2]} 43... g5 {[%clk 0:00:03.2]} 44. Bd7
{[%clk 0:01:10]} 44... g4 {[%clk 0:00:03.1]} 45. g3 {[%clk 0:01:08.3]} 45... f4
{[%clk 0:00:02.2]} 46. Bxg4 {[%clk 0:01:07.7]} 46... fxg3 {[%clk 0:00:02.5]} 47.
hxg3 {[%clk 0:01:08.1]} 1-0

[Event "Early-Titled-Tuesday-Blitz-April-16-2024"]
[Site "Chess.com"]
[Date "2024.04.16"]
[Round "4"]
[White "soumeow"]
[Black "GMCarbone"]
[Result "0-1"]
[WhiteElo "2374"]
[BlackElo "2593"]
[TimeControl "180+1"]
[EndTime "8:39:19 PDT"]
[Termination "GMCarbone won on time"]

1. e4 {[%clk 0:03:00.9]} 1... c5 {[%clk 0:03:00.3]} 2. Nf3 {[%clk 0:03:00.9]}
2... Nc6 {[%clk 0:02:59.9]} 3. d4 {[%clk 0:03:00.6]} 3... cxd4 {[%clk
0:03:00.8]} 4. Nxd4 {[%clk 0:03:01.1]} 4... e6 {[%clk 0:03:01.4]} 5. Nc3 {[%clk
0:03:00.6]} 5... Qc7 {[%clk 0:03:01.7]} 6. g4 {[%clk 0:02:54.8]} 6... a6 {[%clk
0:02:59.4]} 7. Be3 {[%clk 0:02:40]} 7... b5 {[%clk 0:02:58.9]} 8. Nxc6 {[%clk
0:02:33.9]} 8... Qxc6 {[%clk 0:02:59.8]} 9. g5 {[%clk 0:02:28.8]} 9... b4 {[%clk
0:02:55.3]} 10. Ne2 {[%clk 0:02:28.2]} 10... Qxe4 {[%clk 0:02:54.2]} 11. Rg1
{[%clk 0:02:28.5]} 11... d5 {[%clk 0:02:51.3]} 12. Ng3 {[%clk 0:02:11.2]} 12...
Qe5 {[%clk 0:02:48.7]} 13. Qd2 {[%clk 0:02:05.8]} 13... Bc5 {[%clk 0:02:42]} 14.
O-O-O {[%clk 0:02:00.8]} 14... Bxe3 {[%clk 0:02:41.5]} 15. fxe3 {[%clk
0:02:00.7]} 15... Ne7 {[%clk 0:02:37.8]} 16. e4 {[%clk 0:01:56.3]} 16... O-O
{[%clk 0:02:18]} 17. Qxb4 {[%clk 0:01:55.8]} 17... Rb8 {[%clk 0:02:14]} 18. Qa3
{[%clk 0:01:48.4]} 18... Ng6 {[%clk 0:02:02]} 19. exd5 {[%clk 0:01:37.4]} 19...
exd5 {[%clk 0:02:01.6]} 20. Kb1 {[%clk 0:01:24.1]} 20... Bg4 {[%clk 0:01:51.9]}
21. Rc1 {[%clk 0:01:11.6]} 21... Rb6 {[%clk 0:01:46.5]} 22. b3 {[%clk
0:00:38.1]} 22... Nf4 {[%clk 0:01:35.8]} 23. Qc5 {[%clk 0:00:32.8]} 23... Rfb8
{[%clk 0:01:23.9]} 24. h4 {[%clk 0:00:19.6]} 24... Ne6 {[%clk 0:01:12.6]} 25.
Qa3 {[%clk 0:00:14.2]} 25... Nf4 {[%clk 0:00:53.3]} 26. Bxa6 {[%clk 0:00:11.3]}
26... Ra8 {[%clk 0:00:44.5]} 27. Rce1 {[%clk 0:00:11.6]} 27... Qb8 {[%clk
0:00:39.4]} 28. Bc8 {[%clk 0:00:01.4]} 28... Qxc8 {[%clk 0:00:33.8]} 29. Qe7
{[%clk 0:00:01.4]} 29... Re6 {[%clk 0:00:26.4]} 0-1

[Event "Early-Titled-Tuesday-Blitz-April-16-2024"]
[Site "Chess.com"]
[Date "2024.04.16"]
[Round "4"]
[White "artin10862"]
[Black "Sanyura"]
[Result "1-0"]
[WhiteElo "2939"]
[BlackElo "2602"]
[TimeControl "180+1"]
[EndTime "8:39:24 PDT"]
[Termination "artin10862 won on time"]

1. Nf3 {[%clk 0:02:57.8]} 1... Nf6 {[%clk 0:02:17.3]} 2. e3 {[%clk 0:02:54.9]}
2... g6 {[%clk 0:02:17.8]} 3. d4 {[%clk 0:02:55.1]} 3... Bg7 {[%clk 0:02:18.7]}
4. Be2 {[%clk 0:02:55]} 4... O-O {[%clk 0:02:19.6]} 5. O-O {[%clk 0:02:55.7]}
5... d6 {[%clk 0:02:20.5]} 6. c4 {[%clk 0:02:56]} 6... Nbd7 {[%clk 0:02:21.4]}
7. Nc3 {[%clk 0:02:55.6]} 7... e5 {[%clk 0:02:16.6]} 8. d5 {[%clk 0:02:55.6]}
8... a5 {[%clk 0:02:16]} 9. e4 {[%clk 0:02:45.7]} 9... Nc5 {[%clk 0:02:15.4]}
10. Qc2 {[%clk 0:02:45.6]} 10... Nh5 {[%clk 0:02:15.2]} 11. Bg5 {[%clk
0:02:44.8]} 11... f6 {[%clk 0:02:14.4]} 12. Be3 {[%clk 0:02:42.9]} 12... f5
{[%clk 0:02:14.2]} 13. Nd2 {[%clk 0:02:39]} 13... b6 {[%clk 0:02:11.8]} 14. Bxh5
{[%clk 0:02:34.2]} 14... gxh5 {[%clk 0:02:11.9]} 15. f3 {[%clk 0:02:34.8]} 15...
h4 {[%clk 0:02:10.2]} 16. h3 {[%clk 0:02:30.5]} 16... Kh8 {[%clk 0:01:59.5]} 17.
Kh1 {[%clk 0:02:26]} 17... Bd7 {[%clk 0:01:27]} 18. b3 {[%clk 0:02:20.5]} 18...
Rg8 {[%clk 0:01:27.1]} 19. a3 {[%clk 0:01:56.9]} 19... Qf6 {[%clk 0:00:59.4]}
20. b4 {[%clk 0:01:56.7]} 20... axb4 {[%clk 0:00:59.8]} 21. axb4 {[%clk
0:01:57.6]} 21... Na6 {[%clk 0:01:00.7]} 22. Qb2 {[%clk 0:01:52]} 22... Qg6
{[%clk 0:00:54.8]} 23. Rg1 {[%clk 0:01:47.2]} 23... Bh6 {[%clk 0:00:48.3]} 24.
Bxh6 {[%clk 0:01:45.8]} 24... Qxh6 {[%clk 0:00:49.2]} 25. Ne2 {[%clk 0:01:41.7]}
25... Qe3 {[%clk 0:00:46.8]} 26. Rae1 {[%clk 0:01:20.7]} 26... Rg7 {[%clk
0:00:37.8]} 27. Ng3 {[%clk 0:01:09.9]} 27... Qd4 {[%clk 0:00:23.4]} 28. Qxd4
{[%clk 0:01:08]} 28... exd4 {[%clk 0:00:24.3]} 29. Nxf5 {[%clk 0:01:08.5]} 29...
Bxf5 {[%clk 0:00:24.8]} 30. exf5 {[%clk 0:01:09.4]} 30... Nxb4 {[%clk
0:00:25.5]} 31. Re4 {[%clk 0:01:09.7]} 31... d3 {[%clk 0:00:21.7]} 32. Rxh4
{[%clk 0:01:06]} 32... Ra2 {[%clk 0:00:21]} 33. Ne4 {[%clk 0:01:03.2]} 33... Rf7
{[%clk 0:00:15.4]} 34. g4 {[%clk 0:01:00.7]} 34... b5 {[%clk 0:00:10.8]} 35. g5
{[%clk 0:00:55.2]} 35... d2 {[%clk 0:00:08.2]} 36. f6 {[%clk 0:00:48.5]} 36...
Nd3 {[%clk 0:00:02.6]} 37. g6 {[%clk 0:00:47.5]} 37... Rd7 {[%clk 0:00:01.4]}
38. f7 {[%clk 0:00:41.5]} 1-0

[Event "Early-Titled-Tuesday-Blitz-April-16-2024"]
[Site "Chess.com"]
[Date "2024.04.16"]
[Round "4"]
[White "Vladimir_Zakhartsov"]
[Black "Hikaru"]
[Result "0-1"]
[WhiteElo "2934"]
[BlackElo "3276"]
[TimeControl "180+1"]
[EndTime "8:39:25 PDT"]
[Termination "Hikaru won by resignation"]

1. e4 {[%clk 0:03:00.9]} 1... a6 {[%clk 0:02:54.5]} 2. d4 {[%clk 0:03:00.7]}
2... e6 {[%clk 0:02:54.2]} 3. c4 {[%clk 0:02:58.8]} 3... d5 {[%clk 0:02:51.3]}
4. Nc3 {[%clk 0:02:51.7]} 4... dxc4 {[%clk 0:02:37.1]} 5. a4 {[%clk 0:02:45]}
5... Bb4 {[%clk 0:02:34.1]} 6. Bxc4 {[%clk 0:02:40.3]} 6... c5 {[%clk
0:02:31.7]} 7. Be3 {[%clk 0:02:28.3]} 7... Nf6 {[%clk 0:02:27.8]} 8. dxc5 {[%clk
0:02:18.1]} 8... Qxd1+ {[%clk 0:02:24.2]} 9. Kxd1 {[%clk 0:02:15.3]} 9... Ng4
{[%clk 0:02:23.6]} 10. Ke2 {[%clk 0:01:49.6]} 10... Nxe3 {[%clk 0:02:23.1]} 11.
fxe3 {[%clk 0:01:50.5]} 11... Bxc3 {[%clk 0:02:07.4]} 12. bxc3 {[%clk
0:01:51.4]} 12... Nd7 {[%clk 0:02:07.6]} 13. c6 {[%clk 0:01:47.7]} 13... bxc6
{[%clk 0:02:07.9]} 14. a5 {[%clk 0:01:45.2]} 14... e5 {[%clk 0:02:07]} 15. Nf3
{[%clk 0:01:40.5]} 15... f6 {[%clk 0:02:07]} 16. Rhb1 {[%clk 0:01:24.9]} 16...
Kd8 {[%clk 0:02:04.1]} 17. Nd2 {[%clk 0:01:12.7]} 17... Nc5 {[%clk 0:02:02.4]}
18. h3 {[%clk 0:01:12.8]} 18... Kc7 {[%clk 0:02:01.7]} 19. Bd3 {[%clk
0:01:12.9]} 19... Be6 {[%clk 0:01:55]} 20. Bc2 {[%clk 0:01:07.7]} 20... Rhb8
{[%clk 0:01:53.6]} 21. Rb4 {[%clk 0:01:03.3]} 21... Rb5 {[%clk 0:01:51.9]} 22.
Bd3 {[%clk 0:01:02]} 22... Rbb8 {[%clk 0:01:45.5]} 23. Rab1 {[%clk 0:00:56.3]}
23... Rd8 {[%clk 0:01:45]} 24. Bc2 {[%clk 0:00:55.2]} 24... Rab8 {[%clk
0:01:43.7]} 25. Rb6 {[%clk 0:00:35.3]} 25... Rxb6 {[%clk 0:01:36.8]} 26. Rxb6
{[%clk 0:00:36.2]} 26... Rb8 {[%clk 0:01:33.4]} 27. Rb4 {[%clk 0:00:28.7]} 27...
Rb5 {[%clk 0:01:33.1]} 28. Rxb5 {[%clk 0:00:26.3]} 28... cxb5 {[%clk 0:01:29.7]}
29. g4 {[%clk 0:00:18]} 29... Nb7 {[%clk 0:01:28.4]} 30. Bb3 {[%clk 0:00:18.5]}
30... Bd7 {[%clk 0:01:27.7]} 31. Bg8 {[%clk 0:00:16.8]} 31... h5 {[%clk
0:01:19.2]} 32. Nb3 {[%clk 0:00:08.6]} 32... hxg4 {[%clk 0:01:19]} 33. hxg4
{[%clk 0:00:08.2]} 33... Bxg4+ {[%clk 0:01:19.9]} 34. Kd3 {[%clk 0:00:08.8]}
34... Kd6 {[%clk 0:01:19.5]} 35. c4 {[%clk 0:00:06.6]} 35... Nc5+ {[%clk
0:01:12.5]} 36. Kc3 {[%clk 0:00:03.4]} 36... Nxb3 {[%clk 0:01:11.4]} 37. cxb5
{[%clk 0:00:02.7]} 37... Nc5 {[%clk 0:01:05.5]} 38. Kb4 {[%clk 0:00:02.1]} 38...
Be2 {[%clk 0:01:03.2]} 39. b6 {[%clk 0:00:02.3]} 39... Bf3 {[%clk 0:01:02.8]}
40. Bd5 {[%clk 0:00:02.5]} 40... g5 {[%clk 0:00:48.3]} 41. b7 {[%clk 0:00:02.3]}
41... Nxb7 {[%clk 0:00:45.1]} 42. Bxb7 {[%clk 0:00:03.2]} 42... g4 {[%clk
0:00:45.6]} 43. Bxa6 {[%clk 0:00:03.6]} 43... g3 {[%clk 0:00:46.2]} 44. Bf1
{[%clk 0:00:04.2]} 44... g2 {[%clk 0:00:46.5]} 45. Bxg2 {[%clk 0:00:04.8]} 45...
Bxg2 {[%clk 0:00:47.4]} 46. a6 {[%clk 0:00:05.6]} 46... Bxe4 {[%clk 0:00:48.2]}
47. a7 {[%clk 0:00:06.5]} 47... Ba8 {[%clk 0:00:48.6]} 0-1

[Event "Early-Titled-Tuesday-Blitz-April-16-2024"]
[Site "Chess.com"]
[Date "2024.04.16"]
[Round "4"]
[White "TenisMaster"]
[Black "Polish_fighter3000"]
[Result "1-0"]
[WhiteElo "2935"]
[BlackElo "3153"]
[TimeControl "180+1"]
[EndTime "8:39:25 PDT"]
[Termination "TenisMaster won by resignation"]

1. e4 {[%clk 0:03:00.9]} 1... c6 {[%clk 0:02:27.7]} 2. d4 {[%clk 0:02:59.6]}
2... d5 {[%clk 0:02:28.3]} 3. e5 {[%clk 0:02:59.7]} 3... Bf5 {[%clk 0:02:27.7]}
4. Nf3 {[%clk 0:02:58.6]} 4... e6 {[%clk 0:02:28]} 5. c3 {[%clk 0:02:58.3]} 5...
c5 {[%clk 0:02:21.7]} 6. Be3 {[%clk 0:02:57.5]} 6... Qb6 {[%clk 0:02:11.4]} 7.
Qa4+ {[%clk 0:02:57.3]} 7... Nc6 {[%clk 0:02:08.5]} 8. Bb5 {[%clk 0:02:58]} 8...
a6 {[%clk 0:02:00.8]} 9. Bxc6+ {[%clk 0:02:57.5]} 9... bxc6 {[%clk 0:01:58.6]}
10. Qb3 {[%clk 0:02:57.6]} 10... Qa7 {[%clk 0:00:39.6]} 11. dxc5 {[%clk
0:02:56.9]} 11... Bxc5 {[%clk 0:00:38.7]} 12. Bxc5 {[%clk 0:02:56.6]} 12... Qxc5
{[%clk 0:00:39.6]} 13. Qb7 {[%clk 0:02:56.4]} 13... Rd8 {[%clk 0:00:36.6]} 14.
Qxa6 {[%clk 0:02:56.5]} 14... Nh6 {[%clk 0:00:25.2]} 15. Nd4 {[%clk 0:02:40.7]}
15... O-O {[%clk 0:00:22.5]} 16. b4 {[%clk 0:02:29.8]} 16... Qe7 {[%clk
0:00:22]} 17. O-O {[%clk 0:02:18.7]} 17... Ra8 {[%clk 0:00:19]} 18. Qe2 {[%clk
0:02:10]} 18... c5 {[%clk 0:00:17.9]} 19. Nc6 {[%clk 0:02:05.7]} 19... Qb7
{[%clk 0:00:07.6]} 20. b5 {[%clk 0:02:03.4]} 20... Ra4 {[%clk 0:00:05.4]} 21.
Nd2 {[%clk 0:01:54.3]} 21... Rfa8 {[%clk 0:00:05.8]} 22. Nb3 {[%clk 0:01:46.1]}
22... Qb6 {[%clk 0:00:05.3]} 23. h3 {[%clk 0:01:40.5]} 23... Bg6 {[%clk
0:00:04.8]} 24. g4 {[%clk 0:01:25.8]} 24... Kh8 {[%clk 0:00:03.2]} 25. Kh2
{[%clk 0:01:21.7]} 25... Ng8 {[%clk 0:00:02.9]} 26. f4 {[%clk 0:01:18.3]} 26...
Be4 {[%clk 0:00:02.1]} 27. f5 {[%clk 0:01:13]} 27... c4 {[%clk 0:00:02.5]} 28.
Nbd4 {[%clk 0:01:11.8]} 28... Bd3 {[%clk 0:00:03.1]} 29. Qe3 {[%clk 0:00:58.4]}
29... Bxf1 {[%clk 0:00:04]} 30. Rxf1 {[%clk 0:00:58.1]} 30... Rxa2+ {[%clk
0:00:04]} 31. Kg3 {[%clk 0:00:58.7]} 31... exf5 {[%clk 0:00:04.2]} 32. gxf5
{[%clk 0:00:57.3]} 32... Qc7 {[%clk 0:00:03.3]} 33. Qf3 {[%clk 0:00:48.6]} 33...
Rb2 {[%clk 0:00:02.3]} 34. Qxd5 {[%clk 0:00:35]} 34... Ra3 {[%clk 0:00:01.6]}
35. Qd8 {[%clk 0:00:28.8]} 35... h6 {[%clk 0:00:02.5]} 36. Qxc7 {[%clk
0:00:28.2]} 1-0

[Event "Early-Titled-Tuesday-Blitz-April-16-2024"]
[Site "Chess.com"]
[Date "2024.04.16"]
[Round "4"]
[White "Anton_Demchenko"]
[Black "karinachess1"]
[Result "1-0"]
[WhiteElo "3008"]
[BlackElo "2609"]
[TimeControl "180+1"]
[EndTime "8:39:25 PDT"]
[Termination "Anton_Demchenko won by resignation"]

1. e4 {[%clk 0:03:00.9]} 1... e5 {[%clk 0:02:58.5]} 2. Nf3 {[%clk 0:03:00.8]}
2... Nc6 {[%clk 0:02:58.5]} 3. Bc4 {[%clk 0:03:01.2]} 3... Nf6 {[%clk
0:02:56.7]} 4. d3 {[%clk 0:03:01.8]} 4... h6 {[%clk 0:02:55]} 5. c3 {[%clk
0:02:59.6]} 5... d6 {[%clk 0:02:55.5]} 6. O-O {[%clk 0:02:59.2]} 6... g5 {[%clk
0:02:55.4]} 7. Bb3 {[%clk 0:02:59.6]} 7... Bg7 {[%clk 0:02:55.5]} 8. Na3 {[%clk
0:03:00.2]} 8... O-O {[%clk 0:02:54.2]} 9. Nc4 {[%clk 0:02:59.1]} 9... Be6
{[%clk 0:02:54.1]} 10. Ne3 {[%clk 0:02:54.3]} 10... d5 {[%clk 0:02:46]} 11. Qc2
{[%clk 0:02:51.3]} 11... Qd7 {[%clk 0:02:39.8]} 12. Ba4 {[%clk 0:02:49]} 12...
Qd6 {[%clk 0:02:21.6]} 13. exd5 {[%clk 0:02:48.6]} 13... Nxd5 {[%clk 0:02:14.1]}
14. Nc4 {[%clk 0:02:49.2]} 14... Qd8 {[%clk 0:01:58]} 15. Bxc6 {[%clk
0:02:48.8]} 15... bxc6 {[%clk 0:01:58.9]} 16. Nfxe5 {[%clk 0:02:49.1]} 16... Qf6
{[%clk 0:01:48.2]} 17. d4 {[%clk 0:02:08.5]} 17... Nf4 {[%clk 0:01:45.1]} 18.
Bxf4 {[%clk 0:01:49.8]} 18... Qxf4 {[%clk 0:01:38.4]} 19. Rae1 {[%clk
0:01:37.7]} 19... Rad8 {[%clk 0:01:26.3]} 20. Nd3 {[%clk 0:01:31.1]} 20... Qf5
{[%clk 0:01:11.5]} 21. Ne3 {[%clk 0:01:22.9]} 21... Qg6 {[%clk 0:00:36.7]} 22.
Rd1 {[%clk 0:01:21.9]} 22... Rb8 {[%clk 0:00:26.9]} 23. b3 {[%clk 0:01:17.9]}
23... Bd5 {[%clk 0:00:20.3]} 24. Nc5 {[%clk 0:01:12.1]} 24... Qxc2 {[%clk
0:00:15.4]} 25. Nxc2 {[%clk 0:01:13]} 25... Rfe8 {[%clk 0:00:14.9]} 26. Rfe1
{[%clk 0:01:12.6]} 26... Rbd8 {[%clk 0:00:12.4]} 27. Nb4 {[%clk 0:01:08.7]}
27... Bf6 {[%clk 0:00:09.6]} 28. f3 {[%clk 0:01:06.6]} 28... Kg7 {[%clk
0:00:09.6]} 29. Kf2 {[%clk 0:01:05.3]} 29... Rxe1 {[%clk 0:00:08]} 30. Rxe1
{[%clk 0:01:05]} 30... h5 {[%clk 0:00:08.9]} 31. Nbd3 {[%clk 0:00:59.9]} 31...
h4 {[%clk 0:00:05]} 32. Ne5 {[%clk 0:00:58.9]} 32... Rd6 {[%clk 0:00:02.7]} 33.
Ned7 {[%clk 0:00:57.8]} 33... Be6 {[%clk 0:00:02.8]} 34. Nxf6 {[%clk 0:00:58.1]}
34... Kxf6 {[%clk 0:00:03.7]} 35. Ne4+ {[%clk 0:00:57.1]} 35... Ke7 {[%clk
0:00:03.5]} 36. Nxd6 {[%clk 0:00:58]} 36... cxd6 {[%clk 0:00:04.4]} 37. c4
{[%clk 0:00:58.1]} 37... Kd7 {[%clk 0:00:04.8]} 38. Ke3 {[%clk 0:00:57.5]} 38...
f6 {[%clk 0:00:04.9]} 39. g3 {[%clk 0:00:57.9]} 39... hxg3 {[%clk 0:00:04.8]}
40. hxg3 {[%clk 0:00:58.8]} 40... c5 {[%clk 0:00:04.9]} 41. d5 {[%clk
0:00:58.7]} 41... Bf5 {[%clk 0:00:05.4]} 42. g4 {[%clk 0:00:58.7]} 42... Bg6
{[%clk 0:00:05.4]} 43. Rh1 {[%clk 0:00:58.9]} 43... Kc7 {[%clk 0:00:04.2]} 44.
Rh8 {[%clk 0:00:59.5]} 44... Bb1 {[%clk 0:00:03]} 45. Kd2 {[%clk 0:00:54.4]}
45... Bxa2 {[%clk 0:00:03.3]} 46. Kc2 {[%clk 0:00:54.9]} 46... a5 {[%clk
0:00:04.2]} 47. Kb2 {[%clk 0:00:54.9]} 1-0